[Event "*** SCC Grand Prix: Titled Tuesday Blitz"]
[Site "Chess.com"]
[Date "2020.07.21"]
[Round "7"]
[White "Efremov_Vlad"]
[Black "Chessdemon2019"]
[Result "0-1"]
[WhiteElo "2188"]
[BlackElo "2361"]
[TimeControl "180+1"]
[EndTime "11:17:04 PDT"]
[Termination "Chessdemon2019 won by checkmate"]

1. d4 {[%clk 0:03:00.9]} 1... Nf6 {[%clk 0:02:59]} 2. c4 {[%clk 0:03:00.9]} 2...
e6 {[%clk 0:02:59.3]} 3. Nf3 {[%clk 0:03:00.7]} 3... b6 {[%clk 0:02:59.4]} 4. g3
{[%clk 0:03:00]} 4... Bb7 {[%clk 0:02:59.5]} 5. Bg2 {[%clk 0:03:00.1]} 5... Bb4+
{[%clk 0:03:00.2]} 6. Bd2 {[%clk 0:02:59.2]} 6... Bxd2+ {[%clk 0:03:00.5]} 7.
Nbxd2 {[%clk 0:02:57.6]} 7... O-O {[%clk 0:03:01.1]} 8. O-O {[%clk 0:02:57.9]}
8... d6 {[%clk 0:03:01.2]} 9. Qc2 {[%clk 0:02:56.5]} 9... Nbd7 {[%clk 0:03:01]}
10. e4 {[%clk 0:02:57]} 10... e5 {[%clk 0:02:59.7]} 11. d5 {[%clk 0:02:56]}
11... a5 {[%clk 0:02:58.6]} 12. b3 {[%clk 0:02:51.1]} 12... g6 {[%clk
0:02:58.6]} 13. a3 {[%clk 0:02:51]} 13... Nh5 {[%clk 0:02:56.8]} 14. b4 {[%clk
0:02:37.5]} 14... f5 {[%clk 0:02:55.6]} 15. Nh4 {[%clk 0:02:01]} 15... f4 {[%clk
0:02:53.9]} 16. Bh3 {[%clk 0:01:24.9]} 16... Ndf6 {[%clk 0:02:17.6]} 17. c5
{[%clk 0:01:17.8]} 17... Bc8 {[%clk 0:02:12]} 18. Bxc8 {[%clk 0:01:09.1]} 18...
Rxc8 {[%clk 0:02:01.2]} 19. Nc4 {[%clk 0:00:40.9]} 19... axb4 {[%clk 0:01:08.1]}
20. axb4 {[%clk 0:00:40.1]} 20... bxc5 {[%clk 0:01:08.6]} 21. bxc5 {[%clk
0:00:39.6]} 21... Qd7 {[%clk 0:00:59.9]} 22. Qe2 {[%clk 0:00:12.5]} 22... Qh3
{[%clk 0:00:57.1]} 23. cxd6 {[%clk 0:00:10]} 23... Ng4 {[%clk 0:00:50.6]} 24. f3
{[%clk 0:00:09.8]} 24... fxg3 {[%clk 0:00:43.1]} 25. fxg4 {[%clk 0:00:08.6]}
25... Rxf1+ {[%clk 0:00:40.2]} 26. Rxf1 {[%clk 0:00:07.4]} 26... gxh2+ {[%clk
0:00:40.5]} 27. Qxh2 {[%clk 0:00:06.3]} 27... Qxg4+ {[%clk 0:00:41]} 28. Ng2
{[%clk 0:00:04]} 28... cxd6 {[%clk 0:00:40.8]} 29. Nxd6 {[%clk 0:00:03.7]} 29...
Rc2 {[%clk 0:00:40.9]} 30. Rf2 {[%clk 0:00:03.1]} 30... Qd1+ {[%clk 0:00:35]}
31. Rf1 {[%clk 0:00:03.3]} 31... Qd4+ {[%clk 0:00:33.9]} 32. Kh1 {[%clk
0:00:03]} 32... Qd3 {[%clk 0:00:33.1]} 33. Qh4 {[%clk 0:00:03.3]} 33... Qxf1+
{[%clk 0:00:33.1]} 34. Kh2 {[%clk 0:00:03.1]} 34... Qxg2# {[%clk 0:00:34]} 0-1

[Event "*** SCC Grand Prix: Titled Tuesday Blitz"]
[Site "Chess.com"]
[Date "2020.07.21"]
[Round "7"]
[White "kirillshevchenko"]
[Black "Lagmantr"]
[Result "0-1"]
[WhiteElo "2890"]
[BlackElo "2645"]
[TimeControl "180+1"]
[EndTime "11:17:05 PDT"]
[Termination "Lagmantr won by checkmate"]

1. d4 {[%clk 0:03:00.9]} 1... d5 {[%clk 0:02:58.9]} 2. c4 {[%clk 0:03:00.1]}
2... e6 {[%clk 0:02:46.6]} 3. Nc3 {[%clk 0:02:59.3]} 3... c6 {[%clk 0:02:44.4]}
4. Nf3 {[%clk 0:02:57.3]} 4... dxc4 {[%clk 0:02:43]} 5. a4 {[%clk 0:02:53.5]}
5... Bb4 {[%clk 0:02:41.6]} 6. e3 {[%clk 0:02:51.8]} 6... b5 {[%clk 0:02:41.7]}
7. Bd2 {[%clk 0:02:50.7]} 7... a5 {[%clk 0:02:41.5]} 8. axb5 {[%clk 0:02:44.7]}
8... Bxc3 {[%clk 0:02:41.2]} 9. Bxc3 {[%clk 0:02:45.3]} 9... cxb5 {[%clk
0:02:41.6]} 10. b3 {[%clk 0:02:44.1]} 10... Bb7 {[%clk 0:02:40.2]} 11. bxc4
{[%clk 0:02:42.4]} 11... b4 {[%clk 0:02:37]} 12. Bb2 {[%clk 0:02:42.6]} 12...
Nf6 {[%clk 0:02:32.4]} 13. Bd3 {[%clk 0:02:41.4]} 13... O-O {[%clk 0:02:31.6]}
14. O-O {[%clk 0:02:41.1]} 14... Nbd7 {[%clk 0:02:31.8]} 15. Re1 {[%clk
0:02:35.5]} 15... Qc7 {[%clk 0:02:27.3]} 16. e4 {[%clk 0:02:33.1]} 16... e5
{[%clk 0:02:22.1]} 17. Nxe5 {[%clk 0:01:49.7]} 17... Nxe5 {[%clk 0:02:19.7]} 18.
dxe5 {[%clk 0:01:50.6]} 18... Nd7 {[%clk 0:02:19.8]} 19. f4 {[%clk 0:01:25.8]}
19... Nc5 {[%clk 0:02:07.9]} 20. Bc2 {[%clk 0:01:25.7]} 20... a4 {[%clk
0:02:03.7]} 21. Bxa4 {[%clk 0:00:53.9]} 21... Rfd8 {[%clk 0:02:01]} 22. Qc2
{[%clk 0:00:54]} 22... Rxa4 {[%clk 0:01:58.9]} 23. Rxa4 {[%clk 0:00:53.4]} 23...
b3 {[%clk 0:01:57.9]} 24. Qc3 {[%clk 0:00:41.9]} 24... Nxa4 {[%clk 0:01:48.8]}
25. Qxb3 {[%clk 0:00:42.3]} 25... Qc5+ {[%clk 0:01:45.3]} 26. Kh1 {[%clk
0:00:40.6]} 26... Qf2 {[%clk 0:01:05.8]} 27. Rg1 {[%clk 0:00:25.6]} 27... Nc5
{[%clk 0:01:00.6]} 28. Qb6 {[%clk 0:00:22.2]} 28... Rd2 {[%clk 0:00:53.3]} 29.
h3 {[%clk 0:00:15.2]} 29... h5 {[%clk 0:00:44.2]} 30. Ba3 {[%clk 0:00:12.6]}
30... Bxe4 {[%clk 0:00:38.8]} 31. Bxc5 {[%clk 0:00:08.1]} 31... Bxg2+ {[%clk
0:00:38.1]} 32. Kh2 {[%clk 0:00:08.1]} 32... Qxf4# {[%clk 0:00:37.3]} 0-1

[Event "*** SCC Grand Prix: Titled Tuesday Blitz"]
[Site "Chess.com"]
[Date "2020.07.21"]
[Round "7"]
[White "Zhani-Z"]
[Black "Matols"]
[Result "1-0"]
[WhiteElo "2429"]
[BlackElo "2216"]
[TimeControl "180+1"]
[EndTime "11:17:05 PDT"]
[Termination "Zhani-Z won by resignation"]

1. e4 {[%clk 0:02:58.7]} 1... e6 {[%clk 0:02:59.4]} 2. d4 {[%clk 0:02:58.2]}
2... d5 {[%clk 0:02:59.4]} 3. Nc3 {[%clk 0:02:58.7]} 3... Nf6 {[%clk 0:02:58.7]}
4. e5 {[%clk 0:02:58.5]} 4... Nfd7 {[%clk 0:02:58.8]} 5. Nce2 {[%clk 0:02:57.8]}
5... c5 {[%clk 0:02:58]} 6. c3 {[%clk 0:02:58.3]} 6... Qb6 {[%clk 0:02:55.8]} 7.
Nf3 {[%clk 0:02:58.5]} 7... Nc6 {[%clk 0:02:55.5]} 8. a3 {[%clk 0:02:58.8]} 8...
Be7 {[%clk 0:02:52.5]} 9. Nf4 {[%clk 0:02:58.6]} 9... O-O {[%clk 0:02:49.4]} 10.
h4 {[%clk 0:02:55.5]} 10... Re8 {[%clk 0:02:36]} 11. Bd3 {[%clk 0:02:54.2]}
11... cxd4 {[%clk 0:02:27.4]} 12. cxd4 {[%clk 0:02:50.2]} 12... Nf8 {[%clk
0:02:21.3]} 13. b4 {[%clk 0:02:39.5]} 13... f6 {[%clk 0:02:17.8]} 14. O-O {[%clk
0:02:28.6]} 14... Bd7 {[%clk 0:02:08.2]} 15. Be3 {[%clk 0:02:21.5]} 15... f5
{[%clk 0:02:01.7]} 16. g3 {[%clk 0:02:05.5]} 16... Rac8 {[%clk 0:02:00.5]} 17.
Qd2 {[%clk 0:02:01.7]} 17... Qd8 {[%clk 0:01:45.7]} 18. Rac1 {[%clk 0:01:56.3]}
18... h6 {[%clk 0:01:39.1]} 19. Kg2 {[%clk 0:01:51.8]} 19... Nh7 {[%clk
0:01:33.8]} 20. Ng6 {[%clk 0:01:46]} 20... Nf8 {[%clk 0:01:30.8]} 21. h5 {[%clk
0:01:40.5]} 21... Nxg6 {[%clk 0:01:29.5]} 22. hxg6 {[%clk 0:01:41.4]} 22... Qb6
{[%clk 0:01:24.2]} 23. Rxc6 {[%clk 0:01:09.9]} 23... Rxc6 {[%clk 0:01:19.4]} 24.
Bxh6 {[%clk 0:01:09.7]} 24... Rf8 {[%clk 0:01:14.6]} 25. Rh1 {[%clk 0:01:04.4]}
25... Be8 {[%clk 0:01:03.7]} 26. Bxg7 {[%clk 0:01:03.2]} 26... f4 {[%clk
0:00:56.9]} 27. Bxf8 {[%clk 0:01:01.1]} 27... Bxf8 {[%clk 0:00:56.3]} 28. Qxf4
{[%clk 0:01:00.7]} 28... Qc7 {[%clk 0:00:49.8]} 29. Rh7 {[%clk 0:00:53.6]} 29...
Bg7 {[%clk 0:00:49.5]} 30. Ng5 {[%clk 0:00:42.8]} 30... Qe7 {[%clk 0:00:45]} 31.
Qg4 {[%clk 0:00:41.7]} 31... Rc1 {[%clk 0:00:42.5]} 32. Nxe6 {[%clk 0:00:38.7]}
32... Bd7 {[%clk 0:00:40]} 33. Bf5 {[%clk 0:00:38.8]} 33... Bxe6 {[%clk
0:00:39.1]} 34. Bxe6+ {[%clk 0:00:39.7]} 34... Kf8 {[%clk 0:00:36.3]} 35. Bxd5
{[%clk 0:00:36.2]} 35... Ke8 {[%clk 0:00:27.1]} 36. Bf7+ {[%clk 0:00:32.5]}
36... Kd8 {[%clk 0:00:26.1]} 37. Rxg7 {[%clk 0:00:31.6]} 1-0

[Event "*** SCC Grand Prix: Titled Tuesday Blitz"]
[Site "Chess.com"]
[Date "2020.07.21"]
[Round "7"]
[White "tylityli"]
[Black "kasparicy"]
[Result "0-1"]
[WhiteElo "2142"]
[BlackElo "2349"]
[TimeControl "180+1"]
[EndTime "11:17:06 PDT"]
[Termination "kasparicy won on time"]

1. d4 {[%clk 0:03:00.9]} 1... Nf6 {[%clk 0:02:57.5]} 2. c4 {[%clk 0:02:59.5]}
2... g6 {[%clk 0:02:56.3]} 3. Nc3 {[%clk 0:02:59.5]} 3... d5 {[%clk 0:02:54.8]}
4. cxd5 {[%clk 0:02:56.6]} 4... Nxd5 {[%clk 0:02:55.7]} 5. Bd2 {[%clk
0:02:55.7]} 5... Bg7 {[%clk 0:02:55.6]} 6. e4 {[%clk 0:02:54.8]} 6... Nb6 {[%clk
0:02:55.9]} 7. Be3 {[%clk 0:02:54.1]} 7... O-O {[%clk 0:02:56.8]} 8. Bb5 {[%clk
0:02:53.5]} 8... a6 {[%clk 0:02:54.8]} 9. Be2 {[%clk 0:02:53.1]} 9... Nc6 {[%clk
0:02:53.8]} 10. Nf3 {[%clk 0:02:52.8]} 10... Bg4 {[%clk 0:02:51.8]} 11. d5
{[%clk 0:02:51.8]} 11... Bxf3 {[%clk 0:02:48]} 12. Bxf3 {[%clk 0:02:49.1]} 12...
Ne5 {[%clk 0:02:48.2]} 13. Be2 {[%clk 0:02:41.9]} 13... c6 {[%clk 0:02:47.4]}
14. O-O {[%clk 0:02:39.1]} 14... cxd5 {[%clk 0:02:04]} 15. exd5 {[%clk
0:02:37.2]} 15... Nec4 {[%clk 0:02:02.6]} 16. Bd4 {[%clk 0:02:31.6]} 16... e5
{[%clk 0:02:01.7]} 17. Bxb6 {[%clk 0:01:44.7]} 17... Nxb6 {[%clk 0:02:02.6]} 18.
d6 {[%clk 0:01:42.9]} 18... Qd7 {[%clk 0:01:54.3]} 19. Qd3 {[%clk 0:01:35.3]}
19... Rfd8 {[%clk 0:01:53.9]} 20. Rfd1 {[%clk 0:01:34.8]} 20... Rac8 {[%clk
0:01:46.7]} 21. h4 {[%clk 0:01:24]} 21... Nc4 {[%clk 0:01:45.3]} 22. Ne4 {[%clk
0:00:50.9]} 22... Nxb2 {[%clk 0:01:43.6]} 23. Qb3 {[%clk 0:00:49.6]} 23... Nxd1
{[%clk 0:01:42.8]} 24. Rxd1 {[%clk 0:00:50.1]} 24... Qe6 {[%clk 0:01:21.4]} 25.
Qxb7 {[%clk 0:00:36.3]} 25... h6 {[%clk 0:01:21]} 26. d7 {[%clk 0:00:25]} 26...
Rb8 {[%clk 0:01:14.7]} 27. Qxa6 {[%clk 0:00:18.5]} 27... Qe7 {[%clk 0:00:49.3]}
28. Bb5 {[%clk 0:00:12.2]} 28... Kh7 {[%clk 0:00:46.1]} 29. g3 {[%clk
0:00:09.9]} 29... Ra8 {[%clk 0:00:44]} 30. Qc6 {[%clk 0:00:08.3]} 30... Rxa2
{[%clk 0:00:43.9]} 31. Nc5 {[%clk 0:00:06.9]} 31... Rc2 {[%clk 0:00:42.1]} 32.
Rd5 {[%clk 0:00:06.1]} 32... e4 {[%clk 0:00:41.4]} 0-1

[Event "*** SCC Grand Prix: Titled Tuesday Blitz"]
[Site "Chess.com"]
[Date "2020.07.21"]
[Round "7"]
[White "Bastiandash"]
[Black "vova-79"]
[Result "1-0"]
[WhiteElo "2372"]
[BlackElo "2485"]
[TimeControl "180+1"]
[EndTime "11:17:11 PDT"]
[Termination "Bastiandash won by checkmate"]

1. d4 {[%clk 0:03:00.9]} 1... d5 {[%clk 0:02:59.5]} 2. Nf3 {[%clk 0:03:01.8]}
2... Nf6 {[%clk 0:02:59]} 3. c3 {[%clk 0:03:02.5]} 3... c5 {[%clk 0:02:58]} 4.
Bg5 {[%clk 0:03:02.2]} 4... Qb6 {[%clk 0:02:56.7]} 5. Qb3 {[%clk 0:02:59.8]}
5... Qxb3 {[%clk 0:02:51.1]} 6. axb3 {[%clk 0:03:00.7]} 6... cxd4 {[%clk
0:02:50.8]} 7. Nxd4 {[%clk 0:02:55.4]} 7... Bd7 {[%clk 0:02:49.3]} 8. e3 {[%clk
0:02:53]} 8... e6 {[%clk 0:02:49.5]} 9. Nb5 {[%clk 0:02:49.5]} 9... Bxb5 {[%clk
0:02:49]} 10. Bxb5+ {[%clk 0:02:50.4]} 10... Nbd7 {[%clk 0:02:48.2]} 11. Nd2
{[%clk 0:02:33.6]} 11... Be7 {[%clk 0:02:34.4]} 12. O-O {[%clk 0:02:33.2]} 12...
h6 {[%clk 0:02:27.5]} 13. Bh4 {[%clk 0:02:20.4]} 13... a6 {[%clk 0:02:24.6]} 14.
b4 {[%clk 0:02:14]} 14... Rd8 {[%clk 0:02:21.7]} 15. Be2 {[%clk 0:02:12.8]}
15... O-O {[%clk 0:02:07.2]} 16. b5 {[%clk 0:02:10.2]} 16... axb5 {[%clk
0:02:06.3]} 17. Bxb5 {[%clk 0:01:56.5]} 17... Ne5 {[%clk 0:01:58.6]} 18. Ra7
{[%clk 0:01:48.3]} 18... Rb8 {[%clk 0:01:57.6]} 19. Bg3 {[%clk 0:01:47.8]} 19...
Bd6 {[%clk 0:01:56.9]} 20. Rfa1 {[%clk 0:01:37.3]} 20... Rfd8 {[%clk 0:01:54.7]}
21. h3 {[%clk 0:01:13.8]} 21... g5 {[%clk 0:01:51]} 22. R1a2 {[%clk 0:01:10.3]}
22... Nc6 {[%clk 0:01:39.8]} 23. Bxc6 {[%clk 0:00:58.4]} 23... bxc6 {[%clk
0:01:28.8]} 24. Bxd6 {[%clk 0:00:57.7]} 24... Rxd6 {[%clk 0:01:29.7]} 25. Rc7
{[%clk 0:00:50.7]} 25... Ne8 {[%clk 0:01:26.4]} 26. Re7 {[%clk 0:00:45.2]} 26...
Ng7 {[%clk 0:01:19.7]} 27. Raa7 {[%clk 0:00:38.6]} 27... Rf8 {[%clk 0:01:20]}
28. Nf3 {[%clk 0:00:36.5]} 28... Nf5 {[%clk 0:01:19.1]} 29. Rec7 {[%clk
0:00:25.6]} 29... c5 {[%clk 0:01:17.8]} 30. Ne5 {[%clk 0:00:23.8]} 30... Rb6
{[%clk 0:01:17.4]} 31. Nxf7 {[%clk 0:00:12.3]} 31... Re8 {[%clk 0:01:02.9]} 32.
Ne5 {[%clk 0:00:06.8]} 32... Rxb2 {[%clk 0:00:56.5]} 33. g4 {[%clk 0:00:06.8]}
33... Rb1+ {[%clk 0:00:54]} 34. Kh2 {[%clk 0:00:06.3]} 34... Rb2 {[%clk
0:00:39.5]} 35. gxf5 {[%clk 0:00:06.5]} 35... Rxf2+ {[%clk 0:00:38]} 36. Kg3
{[%clk 0:00:06.9]} 36... Rxf5 {[%clk 0:00:38.7]} 37. Rg7+ {[%clk 0:00:07]} 37...
Kf8 {[%clk 0:00:36.5]} 38. Ng6# {[%clk 0:00:07.9]} 1-0

[Event "*** SCC Grand Prix: Titled Tuesday Blitz"]
[Site "Chess.com"]
[Date "2020.07.21"]
[Round "7"]
[White "Munkhzul_Turmunkh"]
[Black "bocah_sakit"]
[Result "1-0"]
[WhiteElo "2610"]
[BlackElo "2716"]
[TimeControl "180+1"]
[EndTime "11:17:15 PDT"]
[Termination "Munkhzul_Turmunkh won on time"]

1. e4 {[%clk 0:03:00.9]} 1... c5 {[%clk 0:03:00.1]} 2. Nf3 {[%clk 0:02:59.3]}
2... Nc6 {[%clk 0:02:59.6]} 3. d4 {[%clk 0:02:58.4]} 3... cxd4 {[%clk
0:03:00.5]} 4. Nxd4 {[%clk 0:02:59.1]} 4... g6 {[%clk 0:03:00]} 5. c4 {[%clk
0:02:58.5]} 5... Nf6 {[%clk 0:02:59.4]} 6. Nc3 {[%clk 0:02:58.1]} 6... d6 {[%clk
0:02:59.6]} 7. Be2 {[%clk 0:02:57.4]} 7... Nxd4 {[%clk 0:02:59.3]} 8. Qxd4
{[%clk 0:02:57.7]} 8... Bg7 {[%clk 0:03:00.2]} 9. Be3 {[%clk 0:02:56.8]} 9...
O-O {[%clk 0:03:00.7]} 10. Qd2 {[%clk 0:02:55.8]} 10... a5 {[%clk 0:03:01.4]}
11. O-O {[%clk 0:02:47.4]} 11... a4 {[%clk 0:03:01.8]} 12. Bd4 {[%clk
0:02:43.3]} 12... Qa5 {[%clk 0:03:01.5]} 13. Rad1 {[%clk 0:02:38.2]} 13... Be6
{[%clk 0:03:01.3]} 14. f4 {[%clk 0:02:34.1]} 14... Rfc8 {[%clk 0:03:01.2]} 15.
b3 {[%clk 0:02:30.9]} 15... axb3 {[%clk 0:03:01.5]} 16. axb3 {[%clk 0:02:31.8]}
16... Qb4 {[%clk 0:03:02]} 17. f5 {[%clk 0:02:28.5]} 17... Bd7 {[%clk
0:02:45.5]} 18. Bxf6 {[%clk 0:02:26.6]} 18... Bxf6 {[%clk 0:02:29.1]} 19. Nd5
{[%clk 0:02:26.2]} 19... Qxd2 {[%clk 0:02:29]} 20. Nxf6+ {[%clk 0:02:25.8]}
20... exf6 {[%clk 0:02:29.9]} 21. Rxd2 {[%clk 0:02:26.3]} 21... Bc6 {[%clk
0:01:31.6]} 22. fxg6 {[%clk 0:02:24.9]} 22... hxg6 {[%clk 0:01:24.5]} 23. Rxf6
{[%clk 0:02:22.9]} 23... Bxe4 {[%clk 0:01:21]} 24. Rfxd6 {[%clk 0:02:19.7]}
24... Ra3 {[%clk 0:01:17.6]} 25. b4 {[%clk 0:02:07]} 25... Kg7 {[%clk 0:01:10]}
26. Kf2 {[%clk 0:02:01.8]} 26... Rb3 {[%clk 0:01:01]} 27. b5 {[%clk 0:01:56]}
27... Bf5 {[%clk 0:00:58.4]} 28. Rd8 {[%clk 0:01:52.1]} 28... Rc7 {[%clk
0:00:57.9]} 29. Rb8 {[%clk 0:01:47.2]} 29... Be6 {[%clk 0:00:57.3]} 30. h4
{[%clk 0:01:33.7]} 30... Rb4 {[%clk 0:00:54]} 31. g3 {[%clk 0:01:28.8]} 31...
Kf6 {[%clk 0:00:51.5]} 32. Rd4 {[%clk 0:01:15.8]} 32... Ke5 {[%clk 0:00:46.7]}
33. Rd2 {[%clk 0:01:14.6]} 33... Kf6 {[%clk 0:00:30.4]} 34. g4 {[%clk
0:01:08.8]} 34... Bxc4 {[%clk 0:00:18.2]} 35. g5+ {[%clk 0:01:03.9]} 35... Ke5
{[%clk 0:00:15.6]} 36. Rc2 {[%clk 0:00:59.9]} 36... Kd6 {[%clk 0:00:03.5]} 37.
b6 {[%clk 0:00:52]} 37... Rc6 {[%clk 0:00:03.5]} 38. Bxc4 {[%clk 0:00:48.8]}
38... Rbxc4 {[%clk 0:00:03.1]} 39. Rxc4 {[%clk 0:00:48.4]} 39... Rxc4 {[%clk
0:00:04]} 40. Rxb7 {[%clk 0:00:47.5]} 40... Kc6 {[%clk 0:00:02.9]} 41. Rc7+
{[%clk 0:00:46.8]} 1-0

[Event "*** SCC Grand Prix: Titled Tuesday Blitz"]
[Site "Chess.com"]
[Date "2020.07.21"]
[Round "7"]
[White "jsl796"]
[Black "checkmatequen"]
[Result "1-0"]
[WhiteElo "2886"]
[BlackElo "2317"]
[TimeControl "180+1"]
[EndTime "11:17:15 PDT"]
[Termination "jsl796 won by checkmate"]

1. d4 {[%clk 0:03:00.9]} 1... Nf6 {[%clk 0:02:58.1]} 2. c4 {[%clk 0:03:00.3]}
2... e6 {[%clk 0:02:57.6]} 3. Nc3 {[%clk 0:02:59.7]} 3... c5 {[%clk 0:02:58.1]}
4. d5 {[%clk 0:02:58.6]} 4... exd5 {[%clk 0:02:59]} 5. cxd5 {[%clk 0:02:58.9]}
5... d6 {[%clk 0:02:59.5]} 6. e4 {[%clk 0:02:59]} 6... g6 {[%clk 0:03:00.1]} 7.
f4 {[%clk 0:02:58.4]} 7... Bg7 {[%clk 0:03:00.7]} 8. Bb5+ {[%clk 0:02:58.8]}
8... Nfd7 {[%clk 0:03:01]} 9. Be2 {[%clk 0:02:59.2]} 9... O-O {[%clk 0:03:01]}
10. Nf3 {[%clk 0:02:59.6]} 10... Re8 {[%clk 0:02:57.8]} 11. O-O {[%clk 0:02:59]}
11... Na6 {[%clk 0:02:52.1]} 12. Kh1 {[%clk 0:02:48]} 12... Nc7 {[%clk
0:02:50.7]} 13. a4 {[%clk 0:02:46.6]} 13... b6 {[%clk 0:02:50.7]} 14. Be3 {[%clk
0:02:41.3]} 14... Ba6 {[%clk 0:02:50.8]} 15. Nd2 {[%clk 0:02:35.1]} 15... f5
{[%clk 0:02:35]} 16. Bxa6 {[%clk 0:02:33.7]} 16... Nxa6 {[%clk 0:02:33.1]} 17.
Nc4 {[%clk 0:02:25.2]} 17... Nf6 {[%clk 0:02:09]} 18. e5 {[%clk 0:02:21.6]}
18... Ng4 {[%clk 0:02:03.3]} 19. e6 {[%clk 0:02:18.3]} 19... Nb4 {[%clk
0:01:52.8]} 20. Bg1 {[%clk 0:02:11.8]} 20... Qh4 {[%clk 0:01:40.8]} 21. h3
{[%clk 0:02:08.2]} 21... Rad8 {[%clk 0:01:36.4]} 22. Qd2 {[%clk 0:01:58.4]}
22... Nf6 {[%clk 0:01:24.3]} 23. Bf2 {[%clk 0:01:50.8]} 23... Qh6 {[%clk
0:01:24.3]} 24. Rad1 {[%clk 0:01:46.8]} 24... Nh5 {[%clk 0:01:22.6]} 25. Be1
{[%clk 0:01:35]} 25... Bd4 {[%clk 0:01:18.3]} 26. Nb5 {[%clk 0:01:32.7]} 26...
Nxd5 {[%clk 0:01:13]} 27. Nxd4 {[%clk 0:01:31.6]} 27... cxd4 {[%clk 0:01:12.8]}
28. Qxd4 {[%clk 0:01:31.3]} 28... Nhxf4 {[%clk 0:01:09.2]} 29. Bd2 {[%clk
0:01:24.1]} 29... g5 {[%clk 0:01:07.7]} 30. Rde1 {[%clk 0:01:16.8]} 30... Nxh3
{[%clk 0:00:56.8]} 31. e7 {[%clk 0:00:52.8]} 31... Nxe7 {[%clk 0:00:29.1]} 32.
Rf3 {[%clk 0:00:45.2]} 32... Nf2+ {[%clk 0:00:22.9]} 33. Kg1 {[%clk 0:00:44.9]}
33... Ne4 {[%clk 0:00:23.3]} 34. Bc3 {[%clk 0:00:37.3]} 34... Kf7 {[%clk
0:00:18.3]} 35. Rxe4 {[%clk 0:00:36]} 35... Nc6 {[%clk 0:00:16.1]} 36. Qd5+
{[%clk 0:00:35.6]} 36... Kg6 {[%clk 0:00:08.3]} 37. Qxf5+ {[%clk 0:00:34.9]}
37... Kh5 {[%clk 0:00:06.5]} 38. g4+ {[%clk 0:00:34.2]} 38... Kh4 {[%clk
0:00:05.4]} 39. Be1# {[%clk 0:00:34.6]} 1-0

[Event "*** SCC Grand Prix: Titled Tuesday Blitz"]
[Site "Chess.com"]
[Date "2020.07.21"]
[Round "7"]
[White "Klavdia_Nik"]
[Black "DonPreuss"]
[Result "0-1"]
[WhiteElo "2030"]
[BlackElo "2170"]
[TimeControl "180+1"]
[EndTime "11:17:15 PDT"]
[Termination "DonPreuss won on time"]

1. Nf3 {[%clk 0:03:00.9]} 1... Nc6 {[%clk 0:02:58.9]} 2. d4 {[%clk 0:02:59.5]}
2... d6 {[%clk 0:02:58.9]} 3. e4 {[%clk 0:02:53.6]} 3... g6 {[%clk 0:02:58.1]}
4. Be2 {[%clk 0:02:53.4]} 4... Bg7 {[%clk 0:02:58.4]} 5. O-O {[%clk 0:02:49.1]}
5... e5 {[%clk 0:02:58.4]} 6. c3 {[%clk 0:02:37.6]} 6... Nge7 {[%clk 0:02:56.5]}
7. Bg5 {[%clk 0:02:33.2]} 7... O-O {[%clk 0:02:55.6]} 8. Qd2 {[%clk 0:02:29.5]}
8... f6 {[%clk 0:02:55.5]} 9. Bh6 {[%clk 0:02:26.9]} 9... f5 {[%clk 0:02:41.7]}
10. Bxg7 {[%clk 0:02:26.3]} 10... Kxg7 {[%clk 0:02:41.6]} 11. exf5 {[%clk
0:02:19.1]} 11... Bxf5 {[%clk 0:02:33.7]} 12. dxe5 {[%clk 0:02:11.8]} 12... dxe5
{[%clk 0:02:25.2]} 13. Qg5 {[%clk 0:01:50.3]} 13... Nd5 {[%clk 0:02:19.1]} 14.
Qg3 {[%clk 0:01:26]} 14... Nf4 {[%clk 0:02:15.9]} 15. Re1 {[%clk 0:01:20.2]}
15... Qf6 {[%clk 0:01:44.1]} 16. Nh4 {[%clk 0:01:07.1]} 16... Rad8 {[%clk
0:01:33.6]} 17. Nxf5+ {[%clk 0:01:01.6]} 17... Qxf5 {[%clk 0:01:33.4]} 18. Na3
{[%clk 0:00:56.9]} 18... Rd2 {[%clk 0:01:28.1]} 19. Bf3 {[%clk 0:00:50.4]} 19...
Nh3+ {[%clk 0:00:58.6]} 20. gxh3 {[%clk 0:00:12.4]} 20... Qxf3 {[%clk
0:00:58.2]} 21. Nc4 {[%clk 0:00:09.5]} 21... Rxf2 {[%clk 0:00:46.4]} 22. Qxf3
{[%clk 0:00:05.7]} 22... R8xf3 {[%clk 0:00:40.3]} 23. Nxe5 {[%clk 0:00:05.7]}
23... Nxe5 {[%clk 0:00:40.3]} 24. Rxe5 {[%clk 0:00:06.2]} 24... Rxb2 {[%clk
0:00:40.5]} 25. Re7+ {[%clk 0:00:05.9]} 25... Kh6 {[%clk 0:00:40.2]} 26. Rxc7
{[%clk 0:00:05.4]} 26... Rff2 {[%clk 0:00:39.2]} 27. Re1 {[%clk 0:00:04.5]}
27... Rg2+ {[%clk 0:00:38.5]} 28. Kh1 {[%clk 0:00:03.4]} 28... Rxh2+ {[%clk
0:00:38.7]} 29. Kg1 {[%clk 0:00:03.6]} 29... Rbg2+ {[%clk 0:00:35.9]} 30. Kf1
{[%clk 0:00:03.7]} 30... Rxa2 {[%clk 0:00:36.4]} 31. Kg1 {[%clk 0:00:02.9]}
31... Rag2+ {[%clk 0:00:30]} 32. Kf1 {[%clk 0:00:02.4]} 32... Rb2 {[%clk
0:00:30.2]} 33. Kg1 {[%clk 0:00:01]} 33... Rxh3 {[%clk 0:00:30.4]} 0-1